bitfinex-derivatives/quotes_BTCF0:USTF0_20251023
["timestamp","ask_amount","ask_price","bid_price","bid_amount"]
[1761243255696,0.133901,110870.0,110860.0,0.00825999]
[1761243256104,0.133901,110870.0,110860.0,0.03098945]
[1761243256298,0.0901925,110850.0,110840.0,0.05490943]
[1761243256607,0.13393677,110850.0,110840.0,0.05001454]
[1761243256806,0.7354207,110850.0,110840.0,0.02270663]
[1761243257108,0.1338587,110830.0,110820.0,0.10222852]
[1761243257407,0.04373483,110830.0,110820.0,0.10222852]
[1761243257709,0.02268483,110830.0,110820.0,0.30371245]
[1761243258215,0.13394353,110830.0,110820.0,0.12304467]
[1761243258597,0.13494353,110830.0,110820.0,0.12304467]
[1761243259297,0.13494353,110830.0,110820.0,0.12504467]
[1761243259805,0.04473483,110830.0,110820.0,0.12504467]
[1761243260101,0.02368483,110830.0,110820.0,0.3265286]
[1761243260308,0.13494353,110830.0,110820.0,0.44700467]
[1761243260502,0.13494353,110830.0,110820.0,0.12504467]
[1761243261307,0.13494353,110830.0,110820.0,0.35678777]
[1761243261494,0.13494353,110830.0,110820.0,0.35674777]
[1761243262099,0.13494353,110830.0,110820.0,0.02001434]
[1761243262299,0.13494353,110830.0,110820.0,0.34975434]
[1761243262300,0.04473483,110830.0,110820.0,0.34975434]
[1761243262509,0.04473483,110830.0,110820.0,0.46086857]
[1761243262713,0.13494363,110830.0,110820.0,0.6623525]
[1761243262903,0.13494363,110830.0,110820.0,0.04841167]
[1761243263103,0.13494363,110830.0,110820.0,0.04641167]
[1761243263410,0.13494363,110830.0,110820.0,0.37073167]
[1761243263606,0.13594363,110830.0,110820.0,0.37073167]
[1761243263909,0.18594363,110830.0,110820.0,0.36873167]
[1761243264106,0.18594363,110830.0,110820.0,0.45894847]
[1761243264299,0.05208483,110830.0,110820.0,0.45894847]
[1761243264500,0.14229343,110830.0,110820.0,0.6604324]
[1761243264809,0.18815343,110830.0,110820.0,0.6604324]
[1761243265010,0.18815343,110830.0,110820.0,0.45894847]
[1761243265206,0.18815343,110830.0,110820.0,0.36873167]
[1761243265600,0.18815343,110830.0,110820.0,0.13662847]
[1761243265801,0.18815343,110830.0,110820.0,0.34416434]
[1761243266002,0.38963736,110830.0,110820.0,0.10823114]
[1761243266205,0.38963736,110830.0,110820.0,0.43067114]
[1761243266206,0.18815343,110830.0,110820.0,0.43067114]
[1761243266410,0.18815343,110830.0,110820.0,0.43817114]
[1761243266611,0.18815343,110830.0,110820.0,0.34795434]
[1761243266906,0.18815343,110830.0,110820.0,0.34799434]
[1761243267509,0.18815343,110830.0,110820.0,0.34795434]
[1761243267710,0.18815343,110830.0,110820.0,0.43813114]
[1761243267912,0.09794483,110830.0,110820.0,0.63961507]
[1761243268216,0.18815343,110830.0,110820.0,0.63961507]
[1761243268398,0.05208483,110830.0,110820.0,0.63961507]
[1761243269010,0.14229343,110830.0,110820.0,0.63961507]
[1761243269204,0.14229343,110830.0,110820.0,0.43813114]
[1761243270114,0.18691343,110830.0,110820.0,0.11573114]
[1761243270313,0.18691343,110830.0,110820.0,0.43813114]
[1761243270807,0.05208483,110830.0,110820.0,0.43813114]
[1761243271113,0.00208483,110830.0,110820.0,1.02611235]
[1761243272109,0.09229343,110830.0,110820.0,0.84720008]
[1761243272413,0.13691343,110830.0,110820.0,0.43798191]
[1761243274816,0.13691343,110830.0,110820.0,0.63946584]
[1761243275114,0.09229343,110830.0,110820.0,0.63946584]
[1761243275714,0.13691343,110830.0,110820.0,0.11534191]
[1761243275915,0.13691343,110830.0,110820.0,0.43830191]
[1761243276117,0.13691343,110830.0,110820.0,0.46092313]
[1761243277418,0.13691343,110830.0,110820.0,0.13796313]
[1761243277622,0.13691343,110830.0,110820.0,0.13796323]
[1761243277920,0.13691343,110830.0,110820.0,0.46076323]
[1761243279920,0.13691343,110830.0,110820.0,0.46068323]
[1761243280322,0.04670483,110830.0,110820.0,0.46068323]
[1761243280524,0.02527483,110830.0,110820.0,0.6859452]
[1761243280732,0.00208483,110830.0,110820.0,0.6859452]
[1761243281315,0.00208483,110830.0,110820.0,0.67283171]
[1761243282120,0.00208483,110830.0,110820.0,0.4793612]
[1761243282322,0.00208483,110830.0,110820.0,0.68084513]
[1761243282516,0.04670483,110830.0,110820.0,0.4793612]
[1761243282830,0.02527483,110830.0,110820.0,0.68084513]
[1761243283119,0.02527483,110830.0,110820.0,0.7285332]
[1761243283311,0.00208483,110830.0,110820.0,0.7285332]
[1761243283511,0.00208483,110830.0,110820.0,0.7284132]
[1761243284116,0.00208483,110830.0,110820.0,1.09662174]
[1761243284420,0.00208483,110830.0,110820.0,0.9124738]
[1761243284623,0.00208483,110830.0,110820.0,1.11395773]
[1761243285315,0.02527483,110830.0,110820.0,0.79135773]
[1761243285623,0.04670483,110830.0,110820.0,1.11379773]
[1761243285814,0.13691353,110830.0,110820.0,0.79135773]
[1761243286015,0.04670483,110830.0,110820.0,0.5123138]
[1761243286527,0.13691343,110830.0,110820.0,0.5123138]
[1761243286923,0.13691343,110830.0,110820.0,0.5122738]
[1761243287424,0.13691343,110830.0,110820.0,0.5122338]
[1761243288624,0.13691343,110830.0,110820.0,0.44720974]
[1761243289228,0.13691343,110830.0,110820.0,0.4953976]
[1761243290228,0.13691343,110830.0,110820.0,0.69688153]
[1761243290822,0.13691343,110830.0,110820.0,0.37452153]
[1761243291023,0.13691343,110830.0,110820.0,0.69684153]
[1761243291428,0.13691343,110830.0,110820.0,0.4954376]
[1761243291734,0.04670483,110830.0,110820.0,0.69692153]
[1761243292022,0.11548353,110830.0,110820.0,0.69692153]
[1761243292921,0.09229353,110830.0,110820.0,0.69692153]
[1761243294023,0.09229353,110830.0,110820.0,0.64873367]
[1761243294417,0.13531353,110830.0,110820.0,0.39135773]
[1761243294618,0.13531353,110830.0,110820.0,0.5123538]
[1761243294822,0.13531353,110830.0,110820.0,0.1898738]
[1761243295024,0.13531353,110830.0,110820.0,0.44732974]
[1761243295736,0.13531353,110830.0,110820.0,0.64881367]
[1761243296324,0.09229353,110830.0,110820.0,0.64881367]
[1761243296925,0.11341353,110830.0,110820.0,0.64881367]
[1761243297130,0.13531353,110830.0,110820.0,0.64881367]
[1761243297931,0.09229353,110830.0,110820.0,0.64881367]
[1761243298134,0.09229353,110830.0,110820.0,0.71383773]
[1761243298734,0.09229353,110830.0,110820.0,0.33008367]
[1761243298933,0.00208483,110830.0,110820.0,1.05240367]
[1761243299133,0.00208483,110830.0,110820.0,1.11742773]
[1761243300833,0.00208483,110830.0,110820.0,0.79510773]
[1761243301135,0.00208483,110830.0,110820.0,0.71726773]
[1761243301328,0.00208483,110830.0,110820.0,0.71351773]
[1761243301525,0.00208483,110830.0,110820.0,0.5120338]
[1761243301725,0.00208483,110830.0,110820.0,0.71351773]
[1761243303032,0.00208483,110830.0,110820.0,1.11351773]
[1761243303529,0.0127,110850.0,110830.0,0.0902062]
[1761243303738,0.1467103,110860.0,110850.0,0.0976926]
[1761243303931,0.1467103,110860.0,110850.0,0.37799071]
[1761243304429,0.0135,110860.0,110850.0,0.36996755]
[1761243304625,0.1740004,110870.0,110860.0,0.0976842]
[1761243304834,0.1740004,110870.0,110860.0,0.4985003]
[1761243305224,0.1959004,110870.0,110860.0,0.0825261]
[1761243305428,0.39738433,110870.0,110860.0,0.3687676]
[1761243305626,0.39738433,110870.0,110860.0,0.34470122]
[1761243305837,0.40238433,110870.0,110860.0,0.34470122]
[1761243306039,0.2009004,110870.0,110860.0,0.02637122]
[1761243306238,0.2009004,110870.0,110860.0,0.44234572]
[1761243306438,0.1509004,110870.0,110860.0,0.46365368]
[1761243306738,0.1509004,110870.0,110860.0,0.39753556]
[1761243306932,0.35238433,110870.0,110860.0,0.3686876]
[1761243307138,0.1519004,110870.0,110860.0,0.3686876]
[1761243307337,0.1519004,110870.0,110860.0,0.0466876]
[1761243307531,0.1519004,110870.0,110860.0,0.44230572]
[1761243307737,0.1519004,110870.0,110860.0,0.64378965]
[1761243308137,0.1519004,110870.0,110860.0,0.44230572]
[1761243309039,0.1519004,110870.0,110860.0,0.4663721]
[1761243309227,0.1519004,110870.0,110860.0,0.44230572]
[1761243311432,0.1518961,110870.0,110860.0,0.66785603]
[1761243311631,0.1299961,110870.0,110860.0,0.4663721]
[1761243311831,0.1299961,110870.0,110860.0,0.66785603]
[1761243312128,0.03982,110870.0,110860.0,0.64378965]
[1761243312335,0.006,110870.0,110860.0,0.66785603]
[1761243312534,0.0961764,110870.0,110860.0,0.8663721]
[1761243312736,0.1518964,110870.0,110860.0,0.4661721]
[1761243312937,0.1299964,110870.0,110860.0,0.66765603]
[1761243313232,0.1518964,110870.0,110860.0,0.66765603]
[1761243313432,0.1518964,110870.0,110860.0,0.4662121]
[1761243314445,0.1518964,110870.0,110860.0,0.44214572]
[1761243314835,0.313009,110870.0,110860.0,0.28141832]
[1761243315037,0.313009,110870.0,110860.0,0.60325832]
[1761243315236,0.06172,110870.0,110860.0,0.76437092]
[1761243315436,0.1299964,110870.0,110860.0,0.76437092]
[1761243315849,0.1518964,110870.0,110860.0,0.76437092]
[1761243316147,0.313009,110870.0,110860.0,0.28141832]
[1761243316342,0.313009,110870.0,110860.0,0.60317832]
[1761243316547,0.1518964,110870.0,110860.0,0.60317832]
[1761243316748,0.1518964,110870.0,110860.0,0.60317299]
[1761243317044,0.1518964,110870.0,110860.0,0.62723937]
[1761243318359,0.31300367,110870.0,110860.0,0.03012122]
[1761243318668,0.1459045,110860.0,110850.0,0.11854756]
[1761243318861,0.1459045,110860.0,110850.0,0.46200439]
[1761243319768,0.1469045,110860.0,110850.0,0.46200439]
[1761243319963,0.05972,110860.0,110850.0,0.46200439]
[1761243320163,0.05972,110860.0,110850.0,0.30151166]
[1761243320465,0.1499045,110860.0,110850.0,0.62307166]
[1761243321959,0.1499045,110860.0,110850.0,0.46196439]
[1761243322362,0.1499045,110860.0,110850.0,0.14040439]
[1761243322656,0.1499045,110860.0,110850.0,0.46184439]
[1761243322972,0.1500108,110840.0,110830.0,0.0977064]
[1761243323165,0.31111807,110840.0,110830.0,0.46509614]
[1761243323471,0.1500108,110840.0,110830.0,0.4650552]
[1761243324064,0.1510108,110840.0,110830.0,0.4660552]
[1761243324368,0.1510108,110840.0,110830.0,0.48457121]
[1761243325664,0.06081,110840.0,110830.0,0.48457121]
[1761243325865,0.1510108,110840.0,110830.0,0.48457121]
[1761243326067,0.01447,110840.0,110830.0,0.48457121]
[1761243326263,0.1046708,110840.0,110830.0,0.48457121]
[1761243326568,0.01447,110840.0,110830.0,1.22232492]
[1761243326766,0.1046708,110840.0,110830.0,0.88457121]
[1761243327667,0.0912008,110840.0,110830.0,0.88457121]
[1761243327864,0.001,110840.0,110830.0,0.88457121]
[1761243328473,0.0912008,110840.0,110830.0,0.88457121]
[1761243329472,0.001,110840.0,110830.0,0.88457121]
[1761243329671,0.001,110840.0,110830.0,1.22232492]
[1761243330176,0.0912008,110840.0,110830.0,0.86054958]
[1761243330570,0.0912008,110840.0,110830.0,0.88458179]
[1761243330767,0.0912008,110840.0,110830.0,0.86054958]
[1761243331471,0.001,110840.0,110830.0,0.8845833]
[1761243331674,0.0912008,110840.0,110830.0,0.8845833]
[1761243333262,0.001,110840.0,110830.0,0.8845833]
[1761243333668,0.0912008,110840.0,110830.0,0.8845833]
[1761243334479,0.0912008,110840.0,110830.0,0.89263808]
[1761243335573,0.001,110840.0,110830.0,0.89263808]
[1761243336980,0.001,110840.0,110830.0,1.23039179]
[1761243337178,0.1753237,110880.0,110870.0,0.0901764]
[1761243337377,0.1983582,110880.0,110870.0,0.4574564]
[1761243337574,0.1983582,110880.0,110870.0,0.47933319]
[1761243337974,0.1983582,110880.0,110870.0,0.38915679]
[1761243338280,0.1983582,110880.0,110870.0,0.47933309]
[1761243338682,0.2003582,110880.0,110870.0,0.47933309]
[1761243338880,0.2063582,110880.0,110870.0,0.47933309]
[1761243342079,0.08104,110880.0,110870.0,0.8239768]
[1761243342279,0.08104,110880.0,110870.0,0.84801282]
[1761243342475,0.1712082,110880.0,110870.0,0.84801282]
[1761243342978,0.2063582,110880.0,110870.0,0.51025911]
[1761243343283,0.2063582,110880.0,110870.0,0.18204911]
[1761243343583,0.2063582,110880.0,110870.0,0.50332911]
[1761243344275,0.2063582,110880.0,110870.0,0.51021911]
[1761243344470,0.2063582,110880.0,110870.0,0.48618309]
[1761243344675,0.1925682,110880.0,110870.0,0.48618309]
[1761243345082,0.2063582,110880.0,110870.0,0.47929309]
[1761243345980,0.1925682,110880.0,110870.0,0.47929309]
[1761243346183,0.1925682,110880.0,110870.0,0.48618309]
[1761243346982,0.1925682,110880.0,110870.0,0.64725283]
[1761243347786,0.2063582,110880.0,110870.0,0.64725283]
[1761243349783,0.2053582,110880.0,110870.0,0.64036283]
[1761243350486,0.2023582,110880.0,110870.0,0.64136283]
[1761243350886,0.0984,110880.0,110870.0,0.64825283]
[1761243351086,0.2023582,110880.0,110870.0,0.66539885]
[1761243351386,0.2023582,110880.0,110870.0,0.64136283]
[1761243351786,0.0984,110880.0,110870.0,0.32697283]
[1761243351993,0.0984,110880.0,110870.0,0.64821283]
[1761243352486,0.07704,110880.0,110870.0,0.64821283]
[1761243352987,0.004,110880.0,110870.0,0.67224885]
[1761243353287,0.004,110880.0,110870.0,0.64821283]
[1761243354481,0.004,110880.0,110870.0,0.67224885]
[1761243354681,0.004,110880.0,110870.0,0.74306371]
[1761243354878,0.1533982,110880.0,110870.0,0.09287281]
[1761243355088,0.87553768,110880.0,110870.0,0.04557259]
[1761243355292,0.1494145,110860.0,110850.0,0.02403602]
[1761243355481,0.1494308,110840.0,110830.0,0.08615827]
[1761243355785,0.1494308,110840.0,110830.0,0.38336225]
[1761243355988,0.05923,110840.0,110830.0,0.65867691]
[1761243356191,0.1267756,110850.0,110840.0,0.04364]
[1761243356487,0.1267756,110850.0,110820.0,0.05065764]
[1761243356488,0.1135289,110830.0,110820.0,0.05065764]
[1761243356788,0.1361789,110830.0,110820.0,0.38818989]
[1761243357379,0.1361789,110830.0,110820.0,0.47840699]
[1761243357577,0.1361789,110830.0,110820.0,0.63947673]
[1761243357796,0.138175,110840.0,110820.0,0.64322673]
[1761243357988,0.136175,110840.0,110830.0,0.20470974]
[1761243358177,0.04597,110840.0,110830.0,0.29491864]
[1761243358378,0.13577908,110870.0,110850.0,0.1338276]
[1761243358379,0.0901803,110870.0,110850.0,0.1338276]
[1761243358579,0.1361503,110870.0,110860.0,0.05661]
[1761243358790,0.1494199,110860.0,110850.0,0.04364]
[1761243359091,0.1361626,110850.0,110840.0,0.04364]
[1761243359278,0.1361626,110850.0,110840.0,0.4680508]
[1761243359481,0.1361626,110850.0,110840.0,0.05661]
[1761243359985,0.1361626,110850.0,110840.0,0.4681708]
[1761243360595,0.1361626,110850.0,110840.0,0.37797]
[1761243360788,0.1401626,110850.0,110840.0,0.37797]
[1761243361092,0.1411626,110850.0,110840.0,0.4681707]
[1761243361287,0.1185126,110850.0,110840.0,0.30788044]
[1761243361487,0.004,110850.0,110840.0,0.62916044]
[1761243361897,0.004,110850.0,110840.0,0.65319646]
[1761243362089,0.004,110850.0,110840.0,1.08524448]
[1761243362290,0.004,110850.0,110840.0,1.06120846]
[1761243362485,0.004,110850.0,110840.0,0.49212094]
[1761243362796,0.001,110850.0,110840.0,0.65319068]
[1761243362996,0.004,110850.0,110840.0,0.65319068]
[1761243363492,0.1135096,110860.0,110850.0,0.1338327]
[1761243363693,0.0901896,110860.0,110850.0,0.29490244]
[1761243364190,0.0901812,110870.0,110860.0,0.1467944]
[1761243364385,0.0901713,110880.0,110870.0,0.133816]
[1761243364590,0.1134913,110880.0,110870.0,0.29488574]
[1761243364791,0.1134913,110880.0,110870.0,0.133816]
[1761243364991,0.0901713,110880.0,110870.0,0.29488574]
[1761243365789,0.0901713,110880.0,110870.0,0.04364]
[1761243365993,0.1361413,110880.0,110870.0,0.04364]
[1761243366394,0.1381413,110880.0,110870.0,0.1338163]
[1761243366594,0.1391413,110880.0,110870.0,0.1338163]
[1761243367095,0.0941682,110880.0,110870.0,0.1338163]
[1761243367296,0.004,110880.0,110870.0,0.47135174]
[1761243367490,0.0911681,110880.0,110870.0,0.1338163]
[1761243367801,0.0941681,110880.0,110870.0,0.1338163]
[1761243367988,0.003,110880.0,110870.0,0.1338163]
[1761243368291,0.004,110880.0,110870.0,0.1338163]
[1761243368495,0.0941682,110880.0,110870.0,0.1338163]
[1761243369182,0.1401382,110880.0,110870.0,0.1338163]
[1761243369386,0.0941682,110880.0,110870.0,0.1338163]
[1761243369588,0.0921682,110880.0,110870.0,0.47135174]
[1761243369792,0.0931682,110880.0,110870.0,0.79263174]
[1761243369993,0.0931682,110880.0,110870.0,0.79255848]
[1761243370192,0.0941682,110880.0,110870.0,0.47127848]
[1761243370388,0.0941682,110880.0,110870.0,0.79251848]
[1761243370898,0.0931682,110880.0,110870.0,0.79251848]
[1761243371096,0.003,110880.0,110870.0,0.79251848]
[1761243372189,0.0931683,110880.0,110870.0,0.79251848]
[1761243372389,0.003,110880.0,110870.0,0.79251848]
[1761243373289,0.0931682,110880.0,110870.0,0.79251848]
[1761243373884,0.003,110880.0,110870.0,0.79251848]
[1761243374503,0.003,110880.0,110870.0,0.81650872]
[1761243374997,0.003,110880.0,110870.0,0.49526872]
[1761243375196,0.001684,110880.0,110870.0,1.21650872]
[1761243375398,0.0901551,110900.0,110890.0,0.1338001]
[1761243375599,0.1409177,110910.0,110900.0,0.146762]
[1761243375898,0.1409177,110910.0,110900.0,0.16521468]
[1761243376293,0.1909177,110910.0,110900.0,0.16521468]
[1761243376597,0.1909177,110910.0,110900.0,0.07506268]
[1761243376798,0.1909177,110910.0,110900.0,0.38333268]
[1761243376799,0.1959177,110910.0,110900.0,0.38333268]
[1761243376998,0.1959177,110910.0,110900.0,0.48645458]
[1761243377199,0.05577,110910.0,110900.0,0.48645458]
[1761243377394,0.1479139,110910.0,110900.0,0.82391676]
[1761243377698,0.1252639,110910.0,110900.0,0.82391676]
[1761243377995,0.0118,110910.0,110900.0,0.82391676]
[1761243378796,0.0078,110910.0,110900.0,0.68764175]
[1761243379299,0.0058,110910.0,110900.0,0.68764175]
[1761243379499,0.0959438,110910.0,110900.0,0.68864175]
[1761243379891,0.1419138,110910.0,110900.0,0.36740175]
[1761243380091,0.1419138,110910.0,110900.0,0.68860175]
[1761243380702,0.1419138,110910.0,110900.0,0.36740175]
[1761243380895,0.1419138,110910.0,110900.0,0.68860175]
[1761243381295,0.1419138,110910.0,110900.0,0.68756175]
[1761243381497,0.1429138,110910.0,110900.0,0.68756175]
[1761243382006,0.1429138,110910.0,110900.0,0.68856175]
[1761243383099,0.1202638,110910.0,110900.0,0.68856175]
[1761243383300,0.0969438,110910.0,110900.0,0.68856175]
[1761243386098,0.10134846,110910.0,110900.0,0.68856175]
[1761243386702,0.12284846,110910.0,110900.0,0.68856175]
[1761243387207,0.12284846,110910.0,110900.0,0.36740175]
[1761243387397,0.12284846,110910.0,110900.0,0.68856175]
[1761243387598,0.10134846,110910.0,110900.0,0.68856175]
[1761243387797,0.10134846,110910.0,110900.0,0.36740175]
[1761243387999,0.14388846,110910.0,110900.0,0.68856175]
[1761243388602,0.14388846,110910.0,110900.0,0.36740175]
[1761243388799,0.12284846,110910.0,110900.0,0.97021128]
[1761243389105,0.10134846,110910.0,110900.0,0.97021128]
[1761243390205,0.01120466,110910.0,110900.0,0.97021128]
[1761243390400,0.10134846,110910.0,110900.0,0.97021128]
[1761243391504,0.01120466,110910.0,110900.0,0.97021128]
[1761243391904,0.10134846,110910.0,110900.0,0.97021128]
[1761243393196,0.10134846,110910.0,110900.0,0.83318417]
[1761243393399,0.10134846,110910.0,110900.0,0.99414307]
[1761243393595,0.14388846,110910.0,110900.0,0.83318417]
[1761243394200,0.14388846,110910.0,110900.0,0.51206417]
[1761243394394,0.20779846,110910.0,110900.0,0.39798048]
[1761243394593,0.20779846,110910.0,110900.0,0.80925238]
[1761243395007,0.20779846,110910.0,110900.0,0.71910048]
[1761243395796,0.19388846,110910.0,110900.0,0.80925248]
[1761243396202,0.15134846,110910.0,110900.0,0.97021138]
[1761243396402,0.10134846,110910.0,110900.0,0.97021138]
[1761243396603,0.10134846,110910.0,110900.0,0.80925248]
[1761243397010,0.10134846,110910.0,110900.0,0.48813248]
[1761243397011,0.12284846,110910.0,110900.0,0.48813248]
[1761243397208,0.12284846,110910.0,110900.0,0.80921248]
[1761243397409,0.10134846,110910.0,110900.0,0.80921248]
[1761243397713,0.10134846,110910.0,110900.0,0.39798048]
[1761243397911,0.15779846,110910.0,110900.0,0.70609048]
[1761243398411,0.15779846,110910.0,110900.0,0.38501048]
[1761243398617,0.71875736,110910.0,110900.0,0.52360158]
[1761243398904,0.55779846,110910.0,110900.0,0.54508158]
[1761243399704,0.55779846,110910.0,110900.0,0.22400158]
[1761243400011,0.55779846,110910.0,110900.0,0.50149158]
[1761243400407,0.14661,110890.0,110880.0,0.17074889]
[1761243400711,0.14661,110890.0,110880.0,0.36476]
[1761243401708,0.14761,110890.0,110880.0,0.04668]
[1761243401913,0.57994878,110890.0,110880.0,0.003]
[1761243402117,0.57994878,110890.0,110880.0,0.32408]
[1761243402315,0.57994878,110890.0,110880.0,0.003]
[1761243403204,0.57994878,110890.0,110880.0,0.001]
[1761243403406,0.58094878,110890.0,110880.0,0.001]
[1761243403607,0.1466182,110880.0,110870.0,0.38135274]
[1761243404212,0.5466182,110880.0,110870.0,0.01659274]
[1761243404418,0.1466264,110870.0,110860.0,0.04368]
[1761243404716,0.1466264,110870.0,110860.0,0.37862]
[1761243406417,0.1466264,110870.0,110860.0,0.38144578]
[1761243406714,0.1476264,110870.0,110860.0,0.38144578]
[1761243406919,0.1486264,110870.0,110860.0,0.06032578]
[1761243407115,0.1486264,110870.0,110860.0,0.38144578]
[1761243408012,0.1347164,110870.0,110860.0,0.48545028]
[1761243409019,0.1347164,110870.0,110860.0,0.39526578]
[1761243409318,0.1486264,110870.0,110860.0,0.59660974]
[1761243410016,0.1347164,110870.0,110860.0,0.59660974]
[1761243410215,0.1347164,110870.0,110860.0,0.68679424]
[1761243410620,0.1357164,110870.0,110860.0,0.68679424]
[1761243411221,0.1357164,110870.0,110860.0,0.59660974]
[1761243413030,0.1493564,110870.0,110860.0,0.39526578]
[1761243415226,0.5493564,110870.0,110860.0,0.01664578]
[1761243415426,0.5493564,110870.0,110860.0,0.02123]
[1761243415630,0.5493564,110870.0,110860.0,0.05859171]
[1761243416635,0.5493564,110870.0,110860.0,0.07124171]
[1761243416834,0.1146764,110870.0,110860.0,0.27258567]
[1761243417126,0.1146764,110870.0,110860.0,0.36277017]
[1761243418324,0.0931764,110870.0,110860.0,0.36277017]
[1761243418525,0.003,110870.0,110860.0,0.36277017]
[1761243418727,0.0931763,110870.0,110860.0,0.76277017]
[1761243418928,0.003,110870.0,110860.0,0.76277017]
[1761243420941,0.0931762,110870.0,110860.0,0.76277017]
[1761243421537,0.0931762,110870.0,110860.0,0.36277017]
[1761243421929,0.1391362,110870.0,110860.0,0.16142621]
[1761243422129,0.1391362,110870.0,110860.0,0.48254621]
[1761243422436,0.1162662,110870.0,110860.0,0.48254621]
[1761243422623,0.0931762,110870.0,110860.0,0.48254621]
[1761243422827,0.0931762,110870.0,110860.0,0.68389017]
[1761243423333,0.003,110870.0,110860.0,0.68389017]
[1761243423832,0.0931764,110870.0,110860.0,0.68389017]
[1761243424332,0.003,110870.0,110860.0,1.08389017]
[1761243424730,0.003,110870.0,110860.0,1.20467193]
[1761243425330,0.003,110870.0,110860.0,1.22861848]
[1761243425642,0.003,110870.0,110860.0,1.38968134]
[1761243425936,0.003,110870.0,110860.0,1.42172936]
[1761243426135,0.090166,110890.0,110880.0,0.05507]
[1761243426333,0.090166,110890.0,110880.0,0.69831572]
[1761243426733,0.090166,110890.0,110880.0,0.5774876]
[1761243426935,0.136126,110890.0,110880.0,0.05507]
[1761243427136,0.136126,110890.0,110880.0,0.04242]
[1761243427137,0.3510636,110890.0,110880.0,0.04242]
[1761243427333,0.3520636,110890.0,110880.0,0.32108]
[1761243427534,0.150766,110890.0,110880.0,0.32108]
[1761243427734,0.149766,110890.0,110880.0,0.32108]
[1761243427939,0.152766,110890.0,110880.0,0.3635]
[1761243428141,0.153766,110890.0,110880.0,0.3635]
[1761243428728,0.153766,110890.0,110880.0,0.04242]
[1761243428938,0.153766,110890.0,110880.0,0.3635]
[1761243429940,0.154766,110890.0,110880.0,0.04342]
[1761243430141,0.154766,110890.0,110880.0,0.3645]
[1761243432034,0.554766,110890.0,110880.0,0.001]
[1761243432235,0.7560636,110890.0,110880.0,0.001]
[1761243433139,0.554766,110890.0,110880.0,0.05607]
[1761243433335,0.541126,110890.0,110880.0,0.05607]
[1761243434135,0.554766,110890.0,110880.0,0.04342]
[1761243434444,0.554766,110890.0,110880.0,0.001]
[1761243434742,0.8370925,110890.0,110880.0,0.001]
[1761243434939,0.1497764,110870.0,110860.0,0.35848171]
[1761243435139,0.1497764,110870.0,110860.0,0.37967171]
[1761243435338,0.1497764,110870.0,110860.0,0.05859171]
[1761243435539,0.1497764,110870.0,110860.0,0.37967171]
[1761243435941,0.1361364,110870.0,110860.0,0.48250621]
[1761243436144,0.1361364,110870.0,110860.0,0.16142621]
[1761243436443,0.1361364,110870.0,110860.0,0.68380381]
[1761243436444,0.1142664,110870.0,110860.0,0.68380381]
[1761243437341,0.1132664,110870.0,110860.0,0.68380381]
[1761243437544,0.1517764,110870.0,110860.0,0.12858621]
[1761243437741,0.353074,110870.0,110860.0,0.05959171]
[1761243438041,0.1527764,110870.0,110860.0,0.05959171]
[1761243438645,0.1517764,110870.0,110860.0,0.05959171]
[1761243438848,0.1527764,110870.0,110860.0,0.07224171]
[1761243439449,0.1507764,110870.0,110860.0,0.07124171]
[1761243439654,0.1527764,110870.0,110860.0,0.07224171]
[1761243439946,0.18519371,110870.0,110860.0,0.001]
[1761243440348,0.52284685,110870.0,110860.0,0.001]
[1761243441044,0.92284685,110870.0,110860.0,0.001]
[1761243442054,0.1361608,110840.0,110830.0,0.16921905]
[1761243442252,0.1361608,110840.0,110830.0,0.49025905]
[1761243442551,0.1132908,110840.0,110830.0,0.49025905]
[1761243442753,0.1361608,110840.0,110830.0,0.5055189]
[1761243442946,0.1361608,110840.0,110830.0,0.1844853]
[1761243443151,0.1371608,110840.0,110830.0,0.5085653]
[1761243443351,0.1371608,110840.0,110830.0,0.5115653]
[1761243444346,0.1371608,110840.0,110830.0,0.5085653]
[1761243444844,0.1371608,110840.0,110830.0,0.1874853]
[1761243445045,0.1371608,110840.0,110830.0,0.4183564]
[1761243445245,0.1371608,110840.0,110830.0,0.5085653]
[1761243445651,0.1509608,110840.0,110830.0,0.4153564]
[1761243445958,0.1514108,110840.0,110830.0,0.4153564]
[1761243446653,0.1514108,110840.0,110830.0,0.40038028]
[1761243447546,0.1514108,110840.0,110830.0,0.38512043]
[1761243449151,0.1514108,110840.0,110830.0,0.3635]
[1761243449654,0.48906394,110840.0,110830.0,0.02123]
[1761243449854,0.1514108,110840.0,110830.0,0.02123]
[1761243450154,0.1514108,110840.0,110830.0,0.0428]
[1761243450651,0.1254089,110830.0,110820.0,0.06202162]
[1761243450847,0.1465689,110830.0,110820.0,0.37045162]
[1761243451155,0.1465689,110830.0,110820.0,0.38535452]
[1761243451755,0.1465689,110830.0,110820.0,0.06527452]
[1761243451949,0.1465689,110830.0,110820.0,0.00551162]
[1761243451950,0.88422204,110830.0,110820.0,0.00551162]
[1761243453853,0.88422204,110830.0,110820.0,0.05037162]
[1761243453854,0.5465689,110830.0,110820.0,0.05037162]
[1761243454157,0.5465689,110830.0,110820.0,0.02880162]
[1761243455957,0.5465689,110830.0,110820.0,0.05037162]
[1761243456351,0.1465689,110830.0,110820.0,0.06323162]
[1761243456545,0.1465689,110830.0,110820.0,0.02880162]
[1761243457052,0.1465689,110830.0,110820.0,0.05037162]
[1761243457258,0.1333189,110830.0,110820.0,0.06323162]
[1761243457549,0.1333189,110830.0,110820.0,0.15344852]
[1761243457756,0.1333189,110830.0,110820.0,0.47456852]
[1761243458055,0.0902089,110830.0,110820.0,0.4961443]
[1761243458444,0.1121589,110830.0,110820.0,0.4961443]
[1761243458643,0.1333189,110830.0,110820.0,0.4961443]
[1761243459053,0.1465689,110830.0,110820.0,0.47456852]
[1761243459255,0.1333189,110830.0,110820.0,0.47456852]
[1761243459456,0.0902089,110830.0,110820.0,0.49615086]
[1761243460050,0.0902063,110840.0,110830.0,0.1263547]
[1761243460260,0.0902063,110840.0,110830.0,0.16950723]
[1761243461347,0.0922063,110840.0,110830.0,0.16950723]
[1761243462059,0.0922063,110840.0,110830.0,0.18456246]
[1761243462463,0.002,110840.0,110830.0,0.94616215]
[1761243462855,0.002,110840.0,110830.0,0.97821017]
[1761243463248,0.002,110840.0,110830.0,0.95426362]
[1761243463453,0.002,110840.0,110830.0,1.00243342]
[1761243464557,0.0901927,110850.0,110840.0,0.1479119]
[1761243464861,0.1333008,110860.0,110850.0,0.1479089]
[1761243465361,0.0901908,110860.0,110850.0,0.1479089]
[1761243466258,0.1121408,110860.0,110850.0,0.1479089]
[1761243466461,0.0911908,110860.0,110850.0,0.1479089]
[1761243466660,0.001,110860.0,110850.0,0.1479089]
[1761243466858,0.0951844,110860.0,110850.0,0.50815232]
[1761243468053,0.0951844,110860.0,110850.0,0.17049918]
[1761243468465,0.1171344,110860.0,110850.0,0.17049918]